Cogmind - Beta 9.6 @@@ ROGUE MODE // 2020.09.05 @ 09:45:54 Player: Hilbert Result: Destroyed by Y-45 Defender with Beam Rifle Performance ------------- Evolutions (1) 500 Regions Visited (2) 400 Robots Destroyed (4) 20 Value Destroyed (133) 133 Prototype IDs (1) 20 Alien Tech Used (0) 0 Bonus (0) 0 TOTAL SCORE: 1073 Bonus ------- None Cogmind --------- Core Integrity 0/400 Matter 279/300 Energy 89/100 System Corruption 0% Temperature Cool (9) Movement Core (50) Location -9/Materials Parts ------- > --- POWER (1) -------- (None) > --- PROPULSION (4) --- (None) > --- UTILITY (2) ------ (None) > --- WEAPON (2) ------- Improved Medium Laser > --- INVENTORY (4) ---- Light Ion Engine Small Storage Unit Peak State ------------ > --- POWER ------------ (None) > --- PROPULSION ------- Light Treads Light Treads > --- UTILITY ---------- Small Storage Unit > --- WEAPON ----------- (None) > --- INVENTORY -------- (None) [Rating: 3] Favorites ----------- Power None Propulsion Light Treads Treads Light Treads Utility Small Storage Unit Storage Small Storage Unit Weapon Light Assault Rifle Energy Gun Improved Medium Laser Ballistic Gun Light Assault Rifle Build | -11 -10 -9 ------- Run | Scr Mat Mat Slots Evolved 2 | . . 2 Power . | . . . Propulsion 2 | . . 2 Utility . | . . . Weapon . | . . . Parts Attached 6 | 3 1 2 Power . | . . . Engine . | . . . Core . | . . . Reactor . | . . . Propulsion 2 | 2 . . Treads 2 | 2 . . Leg . | . . . Wheel . | . . . Hover . | . . . Flight . | . . . Utility 1 | 1 . . Device . | . . . Storage 1 | 1 . . Processor . | . . . Hackware . | . . . Protection . | . . . Artifact . | . . . Weapon 3 | . 1 2 Energy Gun 2 | . . 2 Energy Cannon . | . . . Ballistic Gun 1 | . 1 . Ballistic Cannon . | . . . Launcher . | . . . Special Weapon . | . . . Impact Weapon . | . . . Slashing Weapon . | . . . Piercing Weapon . | . . . Special Melee Weapon . | . . . Unidentified Prototypes 1 | . . 1 Parts Lost 4 | . . 4 Power . | . . . Propulsion 2 | . . 2 Utility . | . . . Weapon 2 | . . 2 Highest Loss Streak 4 | . . 4 Average Slot Usage (%) 25 | . 36 18 Treads 18 | . 28 12 Ballistic Gun 6 | . 8 5 Naked Turns 73 | . . 73 Heaviest Build 1 | . 1 1 Greatest Support 20 | 20 3 3 Greatest Overweight (x) . | . . . Average Overweight (x) . | . . . Largest Inventory Capacity 6 | 6 4 4 Average Capacity 4 | 4 4 4 Most Carried 4 | 4 4 3 Average Carried 2 | 2 3 2 Final Capacity 4 | 4 4 4 Final Carried 4 | 4 3 2 Class Distribution -------------------- 100% | Mutant Dominant Class ---------------- Mutant | -10/Materials Mutant | -9/Materials Resources | -11 -10 -9 ----------- Run | Scr Mat Mat Matter Collected 247 | 199 48 . Remotely . | . . . Salvage Created 156 | . 78 78 Parts 11 | . 6 5 Haulers Intercepted . | . . . Recyclers Shooed . | . . . Parts Field Recycled . | . . . Retrieved Matter . | . . . Parts Self-Destructed . | . . . Prevented . | . . . Kills | -11 -10 -9 ------- Run | Scr Mat Mat Combat Hostiles Destroyed 4 | . 2 2 Guns 4 | . 2 2 Classes Destroyed 3 | . 1 2 Swarmer 1 | . . 1 Grunt 2 | . 2 . Sentry 1 | . . 1 Best Kill Streak 2 | . 2 1 Combat Bots Only 2 | . 2 1 Max Kills in Single Turn 1 | . 1 1 Gunslinging . | . . . Exploded . | . . . Melee . | . . . Uniques/NPCs Destroyed . | . . . Combat | -11 -10 -9 -------- Run | Scr Mat Mat Damage Taken 845 | . 55 790 Core 425 | . 12 413 Absorbed by Shields . | . . . Core Remaining (%) 97 | 100 95 . Volleys Fired 34 | . 7 27 Largest 1 | . 1 1 Hottest 56 | . 20 56 Shots Fired 34 | . 7 27 Gun 34 | . 7 27 Cannon . | . . . Launcher . | . . . Special . | . . . Kinetic 28 | . 7 21 Thermal 6 | . . 6 Explosive . | . . . Electromagnetic . | . . . Robot Hit Streak 12 | . 2 12 Robot Miss Streak 3 | . 1 3 Penetration Max . | . . . Secondary Targets . | . . . Shots Hit Robots 22 | . 4 18 Core Hits 9 | . 4 5 Critical Hits . | . . . Critical Kills . | . . . Critical Parts Destroyed . | . . . Melee Attacks . | . . . Impact . | . . . Slashing . | . . . Piercing . | . . . Sneak Attacks . | . . . Combat Hostiles . | . . . Follow-up Attacks . | . . . Damage Inflicted 211 | . 41 170 Guns 211 | . 41 170 Cannons . | . . . Explosions . | . . . Melee . | . . . Ramming . | . . . Kinetic 165 | . 41 124 Thermal 46 | . . 46 Explosive . | . . . Electromagnetic . | . . . Impact . | . . . Slashing . | . . . Piercing . | . . . Highest Corruption . | . . . Average Corruption . | . . . Corruption Purged . | . . . Overload Shots . | . . . Overflow Damage . | . . . Projectiles . | . . . Explosions . | . . . Melee . | . . . Knockbacks . | . . . Impact . | . . . Kinetic . | . . . Secondary . | . . . Self-Inflicted Damage . | . . . Shots . | . . . Rammed . | . . . Targets Rammed . | . . . Kicked . | . . . Crushed . | . . . Highest Temperature 13 | . 1 13 Average Temperature 2 | . 1 3 Received Heat Transfer 180 | . 30 150 Siege Activations . | . . . Robots Corrupted . | . . . Combat Hostiles . | . . . Parts Fried . | . . . Impact Corruptions . | . . . Robots Melted . | . . . Combat Hostiles . | . . . Parts Melted . | . . . Heat Transferred 99 | . . 99 Parts Sabotaged . | . . . Parts Stolen . | . . . Parts Stripped . | . . . Power Chain Reactions . | . . . Missiles Intercepted . | . . . Alert | -11 -10 -9 ------- Run | Scr Mat Mat Peak Influence 127 | . 65 127 Average Influence 52 | . 18 84 Maximum Alert Level . | . . . Low Security (%) 100 | 100 100 100 Level 1 . | . . . Level 2 . | . . . Level 3 . | . . . Level 4 . | . . . Level 5 . | . . . High Security . | . . . Max Security . | . . . Squads Dispatched 2 | . 1 1 Investigation 1 | . . 1 Extermination . | . . . Reinforcement 1 | . 1 . Assault . | . . . Garrison . | . . . Intercept . | . . . Construction Impeded . | . . . Haulers Reinforced . | . . . Stealth | -11 -10 -9 --------- Run | Scr Mat Mat Distress Signals 3 | . . 3 Communications Jammed . | . . . Distress Signals . | . . . Times Spotted 19 | . 3 16 Peak Tracking Total 13 | . 2 13 Tactical Retreats 5 | . . 5 Traps | -11 -10 -9 ------- Run | Scr Mat Mat Traps Triggered 1 | . . 1 Indirectly . | . . . Trap Hack Attempts . | . . . Triggered . | . . . Disarmed . | . . . Reprogrammed . | . . . Reused . | . . . Traps Extracted . | . . . Installed . | . . . Triggered . | . . . Machines | -11 -10 -9 ---------- Run | Scr Mat Mat Machines Disabled 1 | . . 1 Max in Single Turn 1 | . . 1 Machines Sabotaged . | . . . Garrisons Compromised . | . . . Overloaded Fab Kills . | . . . Fab Network Shutdowns . | . . . Hacking | -11 -10 -9 --------- Run | Scr Mat Mat Machines Accessed 1 | . 1 . Terminals 1 | . 1 . Fabricators . | . . . Repair Stations . | . . . Recycling Units . | . . . Scanalyzers . | . . . Garrison Access . | . . . Total Hacks 2 | . 2 . Successful 1 | . 1 . Failed 1 | . 1 . Catastrophic . | . . . Database Lockouts . | . . . Manual . | . . . Terminals 2 | . 2 . Fabricators . | . . . Repair Stations . | . . . Recycling Units . | . . . Scanalyzers . | . . . Garrison Access . | . . . Terminal Hacks 1 | . 1 . Robot Analysis 1 | . 1 . Fabricator Hacks . | . . . Repair Station Hacks . | . . . Recycling Unit Hacks . | . . . Scanalyzer . | . . . Garrison Access Hacks . | . . . Unauthorized Hacks . | . . . Terminals . | . . . Fabricators . | . . . Repair Stations . | . . . Recycling Units . | . . . Scanalyzers . | . . . Garrison Access . | . . . Data Cores Recovered . | . . . Used . | . . . Hacking Detections . | . . . Full Trace Events . | . . . Feedback Events . | . . . Feedback Blocked . | . . . Robot Schematics Acquired . | . . . Robots Built . | . . . Matter . | . . . Time . | . . . Total Robot Build Rating . | . . . Part Schematics Acquired . | . . . Parts Built . | . . . Matter . | . . . Time . | . . . Total Part Build Rating . | . . . Parts Repaired . | . . . Time . | . . . Parts Recycled . | . . . Recycled Matter . | . . . Retrieved Matter . | . . . Retrieved Components . | . . . Parts Scanalyzed . | . . . Part Schematics Acquired . | . . . Parts Damaged . | . . . Bothacking | -11 -10 -9 ------------ Run | Scr Mat Mat Used RIF Installer . | . . . Robots Hacked . | . . . Non-combat . | . . . Combat . | . . . Robot Hacks Applied . | . . . Relay Couplers Released . | . . . Robots Rewired . | . . . Allies Hacked . | . . . Hacks Repelled . | . . . Allies | -11 -10 -9 -------- Run | Scr Mat Mat Total Allies . | . . . Largest Group . | . . . Highest-Rated Group . | . . . Highest-Rated Ally . | . . . Total Orders . | . . . Ally Attacks . | . . . Total Damage . | . . . Kills . | . . . Allies Corrupted . | . . . Allies Melted . | . . . Intel | -11 -10 -9 ------- Run | Scr Mat Mat Robot Analysis Total 1 | . 1 . Derelict Logs Recovered . | . . . Drone Launches . | . . . Drone Recoveries . | . . . Exploration | -11 -10 -9 ------------- Run | Scr Mat Mat Turns Passed 332 | 32 120 180 Spaces Moved 431 | 46 131 254 Core 430 | 45 131 254 Treads 1 | 1 . . Legs . | . . . Wheels . | . . . Hover . | . . . Flight . | . . . Fastest Speed 50 | 50 50 50 Average Speed 50 | 52 50 50 Slowest Speed 160 | 160 50 50 Overloaded Moves . | . . . Propulsion Burnouts . | . . . Robots Hopped . | . . . Cave-ins Triggered . | . . . Exploration Rate (%) 22 | 3 29 35 Regions Visited 2 Branch Regions . Pre-discovered Areas . | . . . Known Exits Taken . | . . . Unknown Exits Taken 2 | 1 1 . Scrap Searched . | . . . Spaces Dug . | . . . Terrain Destroyed . | . . . Melee . | . . . Projectile . | . . . AOE . | . . . Actions | -11 -10 -9 --------- Run | Scr Mat Mat Total 516 | 52 179 285 Wait 43 | . 41 2 Move 429 | 45 130 254 Hop . | . . . Pick Up 3 | 3 . . Fast Attach 4 | 3 . 1 Attach 2 | . 1 1 Detach 1 | 1 . . Swap . | . . . Drop . | . . . Fire 34 | . 7 27 Melee . | . . . Ram . | . . . Kick . | . . . Crush . | . . . Escape Stasis . | . . . Rewire . | . . . Trap . | . . . Miscellaneous . | . . . Route ------- -11/Scrapyard -10/Materials -9/Materials History --------- Turn | Location | Event 5 | -11/Scrapyard | Discovered new exit (range 14) 33 | -11/Scrapyard | Entered Materials 143 | -10/Materials | Discovered new exit (range 16) 153 | -10/Materials | Entered another Materials area 153 | -9/Materials | Evolved 2 slots: Propulsion x2 274 | -9/Materials | Core integrity fell below 50% 281 | -9/Materials | Lost 4 parts (2n2w) 299 | -9/Materials | Core integrity fell below 20% 307 | -9/Materials | Build established: Mutant 333 | -9/Materials | Destroyed by Y-45 Defender with Beam Rifle Last Messages --------------- 00248_ Lgt. Assault Rifle destroyed. 00249_ Y-45 Defender destroyed. 00250_ Fusion Modulator explodes. 00250_ Lgt. Treads destroyed. 00250_ Sml. Laser destroyed. 00250_ Lgt. Treads destroyed. 00250_ R-06 Scavenger collects Lgt. Treads. 00254_ R-06 Scavenger collects Hvy. Assault Rifle. 00267_ W-16 Scout sends out distress signal. 00270_ Triggered Alarm Trap. 00270_ An alarm sounds. 00270_ ALERT: Alarm triggered, dispatching investigation squad. 00314_ Connecting with Terminal... 00314_ Current location identified: Materials 00323_ Acquired Prototype Energy Gun. 00323_ Identified Imp. Medium Laser. 00325_ Matter Filter disabled. 00328_ M-13 Machinist fits Backup Power I on S-10 Pest. 00330_ M-13 Machinist fits Backup Propulsion I on S-10 Pest. 00332_ S-10 Pest destroyed. Map ----- +----------------------------------------------------+ | ?????????????????????!!!?????# #???????#] """ | | ????????????????????? ?????# #???????? """ | | ?????????????????????? ??????? #??????????""" | | ????#####?????######## ????????#+#????????????? | | ????# / ????# + ?#??????# #??###+###???### | | ????# ?#### ## ## ????# #??# ##### | | ????# " " # # ## ## ??# #### | | ????# "R" # # ## # # | | ????# """ + / "T" / + + ### | | ????# # # """ ## # # #?# ##### | | ????######## ######### # ??# #?### ###???### | | ??????????# ######## ##+##### #???#+#???????? | | ??????????# #?????????????? | | ??????????# +?????????????? | | ??????????# ##+########## ######?????????????? | | ??????????###### """ #????# #??????????????????? | | ???????????????# "T" #????# #??????????????????? | | ???????????????# ###### #??????????????????? | | ???????????????#! / #??????????????????? | | ???????????????# ######Y#####???????????????? | | ???????????????# #?# #???????????????? | | ???????????????########?#ms%"""" #???????????????? | | ????????????????????????#=%%"""" #???????????????? | | ????????????????????????# """"" #???????????????? | | ????????????????????????# """"" #??????????? ???? | | ????????????????????????#@ """"" #??????????? ??? | | ????????????????????????# """"" ???????????# ?? | | ????????????????????????# """""????????????? # | | ????????????????????????# #???????????? | | ????????????????????????##########???????????? | | ???????????????????????????????????????????????? | | ?????????????????????????????????????????????????? | | ?????????????????????????????????????????????????? | | ????????????????????????????####????????#######??? | | ????????????????????????????# ####### #### | | ????????????????????????????# T" | | ????????????????????????????# " | | ????????????????????????????# | | ????????????????????????????# ####### #### | | ????????????????????????????## ?????????## ##??? | | ????????????????????????????????????#????# #???? | | ???????????????????????????????????? | # #???? | | ?????????????????????????????????? + ##### | | ?????????????????????????????????????????# | | ??????????????????????????????????????#### | | ??????????????????????????????? | | ?????????????????????????????? ########### | | ??????????????????????????????????????????????# | | ??????????????????????????????????????????????# | | ??????????????????????????????????????????????# | +----------------------------------------------------+ Best States ------------- Heat Dissipation 28 Energy Generation 5 Energy Capacity 100 Matter Stores 300 Matter Capacity 300 Sight Range 16 Terrain Scan Density 10 Evasion (%) 50 Item Schematics ----------------- None Robot Schematics ------------------ None Fabricated ------------ Nothing Alien Tech Used ----------------- None Achievements -------------- None Challenges ------------ None Game ------ Seed IonicFieldScanner Manual? 0 Play Time 00:08:32 Cumulative 24.2 hours Start 2020.09.05 @ 09:39:45 End 2020.09.05 @ 09:45:54 Sessions 1 Manual Loads 0 Difficulty Rogue Special Mode None Game No. 53 Rogue 53 Adventurer 0 Explorer 0 Win Type - Total 0 Types 0/0/0/0/0/0/0 Lore% 26 Gallery% 33 Achievement% 24 Wizard Run 0 Options --------- ASCII 0 Keyboard 1 Movement Vi Keybinds 0 Fullscreen 1 Font 18/SmallcapsGlow Map View 76x50 Tactical HUD 1 Map Filters NONE Filters NONE Steam 1 RUN: 1f930462-c105-432c-869a-731f13d3e57c